{"text_format":"1","workbook":"xlsx","n_sheets":3,"sheets":["R8 業者用記録表","公共工事に係るグリーン購入調達記録表記載方法","類似品（適用品外）の考え方"],"not_rendered":{"charts":0,"images":0,"macros":1,"external_links":0,"defined_names":1,"comments":0,"pivot_tables":0},"unopened":[],"bounds":{"document_bytes":16777216,"sheet_cells":100000,"rows_first":2000,"rows_last":500,"rows_between":2000,"halvings":0,"cell_chars":16384,"cell_head_chars":4096},"cells_cut":0,"cells_raw":0,"read":"whole","date_system":"1900"}

{"sheet":"R8 業者用記録表","index":0,"n_rows":91,"n_cols":13,"rows_kept":91,"cut":false,"hidden":false,"merged":[[28,11,29,11],[28,12,29,12],[30,11,31,11],[30,12,31,12],[77,6,77,7],[67,6,67,7],[68,6,68,7],[72,6,72,7],[62,6,62,7],[65,6,65,7],[71,6,71,7],[66,6,66,7],[69,6,69,7],[70,6,70,7],[7,9,10,9],[21,6,21,7],[11,6,11,7],[12,6,12,7],[17,12,18,12],[13,6,13,7],[14,6,14,7],[2,8,2,9],[3,8,3,9],[4,3,4,7],[5,10,5,12],[5,3,5,7],[5,8,5,9],[0,0,0,12],[7,2,7,3],[2,1,2,2],[3,1,3,2],[4,1,4,2],[5,1,5,2],[7,10,10,10],[8,8,10,8],[9,6,10,6],[2,10,2,12],[1,3,1,12],[4,8,4,9],[3,10,3,12],[4,10,4,12],[2,3,2,7],[3,3,3,7],[53,2,55,2],[40,6,40,7],[60,6,60,7],[59,6,59,7],[49,6,49,7],[57,6,57,7],[58,6,58,7],[50,6,50,7],[45,6,45,7],[28,2,31,2],[28,4,29,4],[30,4,31,4],[61,6,61,7],[15,6,15,7],[16,6,16,7],[17,6,17,7],[18,6,18,7],[19,6,19,7],[48,6,48,7],[56,6,56,7],[28,6,28,7],[29,6,29,7],[22,6,22,7],[55,6,55,7],[25,6,25,7],[27,6,27,7],[24,6,24,7],[26,6,26,7],[73,6,73,7],[20,6,20,7],[23,6,23,7],[63,6,63,7],[46,6,46,7],[54,6,54,7],[52,6,52,7],[30,6,30,7],[31,6,31,7],[36,6,36,7],[37,6,37,7],[38,6,38,7],[39,6,39,7],[84,6,84,7],[83,6,83,7],[81,6,81,7],[32,6,32,7],[33,6,33,7],[35,6,35,7],[82,6,82,7],[41,6,41,7],[47,6,47,7],[74,6,74,7],[75,6,75,7],[76,6,76,7],[64,6,64,7],[79,6,79,7],[78,6,78,7]]}
["公共工事に係るグリーン購入調達個別工事物件記録表（令和8年度版）"]
["１　工事名等"]
[null,"工事名",null,null,null,null,null,null,"請負業者名"]
[null,"請負額",null,null,null,null,null,null,"記入担当者名"]
[null,"工事箇所",null,null,null,null,null,null,"電話番号"]
[null,"工事番号",null,null,null,null,null,null,"FAX番号"]
["２　グリーン購入調達実績"]
[null,null,"品目名",null,null,"数量",null,null,null,"適用品\n数量割合\n（％）\nA/（A+C)","県認定\nﾘｻｲｸﾙ製品\n数量割合\n（％）\nB/A"]
[null,null,null,null,null,null,null,null,"類似品\n（適用品外）\n（C)"]
[null,null,null,null,null,null,"左のうち福井県認定リサイクル製品（B)"]
[null,"分類","品目分類","品目名","単位","適用品\n（A)",null,"（参考）認定\n番号",null,null,null,"対象工事","記載方法"]
[null,"資材","盛土材等","建設汚泥から再生した処理土","m3",null,null,null,null,null,null,"建設汚泥から再生した処理土を盛土等に使用した工事","再生処理土使用量"]
[null,null,null,"建設発生土またはその改良土","m3",null,null,null,null,{"$f":"IF(ISERROR(ROUND(F13/SUM(F13,I13)*100,1)),\"\",ROUND(F13/SUM(F13,I13)*100,1))","v":""},null,"建設発生土またはその改良土を盛土等に使用した工事","発生土等使用量"]
[null,null,null,"土工用水砕スラグ","m3",null,null,null,null,{"$f":"IF(ISERROR(ROUND(F14/SUM(F14,I14)*100,1)),\"\",ROUND(F14/SUM(F14,I14)*100,1))","v":""},null,"土工用水砕スラグを盛土等に使用した工事","スラグ等使用量"]
[null,null,null,"銅スラグを用いたケーソン中詰め材","m3",null,null,null,null,"",null,"銅スラグをケーソン中詰め材に使用した工事","スラグ等使用量"]
[null,null,null,"フェロニッケルスラグを用いたケーソン中詰め材","m3",null,null,null,null,"",null,"フェロニッケルスラグをケーソン中詰め材に使用した工事","スラグ等使用量"]
[null,null,"地盤改良材","地盤改良用製鋼スラグ","m3",null,null,null,null,"",null,"製鋼スラグを地盤改良材として使用した工事","スラグ等使用量"]
[null,null,"コンクリート用スラグ骨材","高炉スラグ骨材","m3",null,null,null,null,"",null,"コンクリート用スラグ骨材を使用した工事","コンクリート用スラグ骨材使用量"]
[null,null,null,"フェロニッケルスラグ骨材","m3",null,null,null,null,""]
[null,null,null,"銅スラグ骨材","m3",null,null,null,null,""]
[null,null,null,"電気炉酸化スラグ骨材","m3",null,null,null,null,""]
[null,null,"アスファルト混合物","再生加熱アスファルト混合物","t",null,null,null,null,"",null,"再生加熱アスファルト混合物を使用した工事","混合物使用量"]
[null,null,null,"ワックス添加アスファルト混合物","m2",null,null,null,null,"",null,"ワックス添加アスファルト混合物を使用した工事","施工面積"]
[null,null,null,"鉄鋼スラグ混入アスファルト混合物","t",null,null,null,null,"",null,"鉄鋼スラグ混入アスファルト混合物を使用した工事","混合物使用量"]
[null,null,null,"中温化アスファルト混合物","t",null,null,null,null,"",null,"中温化アスファルト混合物を使用した工事","混合物使用量"]
[null,null,"路盤材","鉄鋼スラグ混入路盤材","m3",null,null,null,null,"",null,"再生骨材等を使用した工事","骨材等使用量"]
[null,null,null,"再生骨材等","m3",null,null,null,null,""]
[null,null,"小径丸太材","間伐材","m3",null,null,null,null,null,null,"間伐材を使用した工事","間伐材使用量"]
[null,null,"混合セメントおよびコンクリート","高炉セメント\n","t",null,null,null,null,{"$f":"IF(ISERROR(ROUND(F29/SUM(F29,I29)*100,1)),\"\",ROUND(F29/SUM(F29,I29)*100,1))","v":""},null,"高炉セメントまたはフライアッシュセメントを使用した工事（生コンおよび吹付けコンクリートは除く。）","セメント使用量"]
[null,null,null,"フライアッシュセメント",null,null,null,null,null,{"$f":"IF(ISERROR(ROUND(F30/SUM(F30,I30)*100,1)),\"\",ROUND(F30/SUM(F30,I30)*100,1))","v":""}]
[null,null,null,"生コンクリートおよび吹付けコンクリート（高炉）","ｍ３",null,null,null,null,"",null,"生コンクリートおよび吹付けコンクリート（高炉セメントまたはフライアッシュセメント）を使用した工事","生コンクリート使用量"]
[null,null,null,"生コンクリートおよび吹付けコンクリート（フライアッシュ）",null,null,null,null,null,"",{"$f":"IF(ISERROR(ROUND(G32/F32*100,1)),\"\",ROUND(G32/F32*100,1))","v":""}]
[null,null,"セメント","エコセメント","個",null,null,null,null,"",null,"エコセメントを使用した工事","コンクリート２次製品使用個数"]
[null,null,"コンクリートおよびコンクリート製品","透水性コンクリート","m3\n個",null,null,null,null,{"$f":"IF(ISERROR(ROUND(F34/SUM(F34,I34)*100,1)),\"\",ROUND(F34/SUM(F34,I34)*100,1))","v":""},null,"透水性コンクリートを使用した工事","コンクリート（製品）使用量"]
[null,null,"コンクリート製品","再生材料を用いたコンクリート二次製品（インターロッキングブロックを含む。）","t",null,null,"26,38,42,46,47,59,90,91,92,97",null,"",{"$f":"IF(ISERROR(ROUND(G35/F35*100,1)),\"\",ROUND(G35/F35*100,1))","v":""},"再生材料を用いたコンクリート二次製品を使用した工事","製品使用量"]
[null,null,"鉄鋼スラグ水和固化体","鉄鋼スラグブロック","kg",null,null,null,null,"",null,"鉄鋼スラグブロックを使用した工事","製品使用量"]
[null,null,"塗料","下塗用塗料\n（重防食）","kg",null,null,null,null,"",null,"下塗用塗料（重防食）を使用した工事","塗料使用量"]
[null,null,null,"低揮発性有機溶剤型の路面標示用水性塗料","m2",null,null,null,null,"",null,"有機溶剤型の路面標示用水性塗料を使用した工事","施工面積"]
[null,null,null,"高日射反射率塗料","m2",null,null,null,null,"",null,"日射反射率塗料を使用した工事","施工面積"]
[null,null,"防水","高日射反射率防水","m2",null,null,null,null,"",null,"日射反射率防水を使用した工事","施工面積"]
[null,null,"舗装材","再生材料を用いた舗装用ブロック（焼成）","m2",null,null,null,null,"",null,"再生材料を用いた舗装用ブロック（焼成）を使用した工事","施工面積"]
[null,null,null,"再生材料を用いた舗装用ブロック類（プレキャスト無筋コンクリート製品）","m2",null,null,null,null,"",null,"再生材料を用いた舗装用ブロック（プレキャスト無筋コンクリート製品）を使用した工事","施工面積"]
[null,null,"土木用シート","再生材料を用いた土木用シート等（吸出防止材、植生・防草シート）","m2",null,null,"20-1,20-2,96",null,"",{"$f":"IF(ISERROR(ROUND(G43/F43*100,1)),\"\",ROUND(G43/F43*100,1))","v":""},"再生材料を用いた土木用シート（吸出防止材等）を使用した工事","施工面積"]
[null,null,"園芸資材","剪定枝葉たい肥","kg",null,null,"5,56",null,"",{"$f":"IF(ISERROR(ROUND(G44/F44*100,1)),\"\",ROUND(G44/F44*100,1))","v":""},"剪定枝葉たい肥を使用した工事","肥料使用量"]
[null,null,null,"バークたい肥","kg",null,null,71,null,"",{"$f":"IF(ISERROR(ROUND(G45/F45*100,1)),\"\",ROUND(G45/F45*100,1))","v":""},"バークたい肥を使用した工事","肥料使用量"]
[null,null,null,"下水汚泥を使用した汚泥発酵肥料（下水汚泥コンポスト）","kg",null,null,null,null,"",{"$f":"IF(ISERROR(ROUND(G46/F46*100,1)),\"\",ROUND(G46/F46*100,1))","v":""},"下水汚泥を使用した汚泥発酵肥料（下水汚泥コンポスト）を使用した工事","肥料使用量"]
[null,null,"道路照明","LED道路照明","個",null,null,null,null,"",null,"LED道路照明を使用した工事","使用個数"]
[null,null,"中央分離帯ブロック","再生プラスチック製中央分離帯ブロック","個",null,null,null,null,"",null,"再生プラスチック製中央分離帯ブロックを使用した工事","使用個数"]
[null,null,"タイル","セラミックタイル","m2",null,null,null,null,"",null,"セラミックタイルを使用した工事","使用面積"]
[null,null,"建具","断熱サッシ・ドア","工事数",null,null,null,null,"",null,"断熱サッシ・ドアを使用した工事","工事数"]
[null,null,"製材等","製材","m2",null,null,null,null,"",null,"製材を使用した工事","使用面積"]
[null,null,null,"集成材（直交集成板を含む）、合板、単板積層材","m3",null,null,28,null,"",{"$f":"IF(ISERROR(ROUND(G52/F52*100,1)),\"\",ROUND(G52/F52*100,1))","v":""},"集成材（直交集成板を含む）、合板、単板積層材を使用した工事","使用量"]
[null,null,"フローリング","フローリング","m2",null,null,null,null,"",null,"フローリングを使用した工事","使用面積"]
[null,null,"再生木質ボード","パーティクルボード","m2",null,null,103,null,"",{"$f":"IF(ISERROR(ROUND(G54/F54*100,1)),\"\",ROUND(G54/F54*100,1))","v":""},"パーティクルボードを使用した工事","使用面積"]
[null,null,null,"繊維板","m2",null,null,null,null,"",null,"繊維板を使用した工事","使用面積"]
[null,null,null,"木質系セメント板","m2",null,null,null,null,"",null,"木質系セメント板を使用した工事","使用面積"]
[null,null,"木材・プラスチック再生複合材製品","木材・プラスチック再生複合材製品","m2",null,null,null,null,"",null,"木材・プラスチック再生複合材製品を使用した工事","使用面積"]
[null,null,"ビニル系床材","ビニル系床材","m2",null,null,null,null,"",null,"ビニル系床材を使用した工事","使用面積"]
[null,null,"断熱材","断熱材","工事数",null,null,null,null,"",null,"断熱材を使用した工事","工事数"]
[null,null,"照明機器","照明制御システム","工事数",null,null,null,null,"",null,"照明制御システムを使用した工事","工事数"]
[null,null,"変圧器","変圧器","台",null,null,null,null,"",null,"変圧器を使用した工事","台数"]
[null,null,"空調用機器","吸収冷温水機","台",null,null,null,null,"",null,"吸収冷温水機を使用した工事","台数"]
[null,null,null,"氷蓄熱式空調機器","台",null,null,null,null,"",null,"氷蓄熱式空調機器を使用した工事","台数"]
[null,null,null,"ガスエンジンヒートポンプ式空気調和機","台",null,null,null,null,"",null,"ガスエンジンヒートポンプ式空気調和機を使用した工事","台数"]
[null,null,null,"送風機","台",null,null,null,null,"",null,"送風機を使用した工事","台数"]
[null,null,null,"ポンプ","台",null,null,null,null,"",null,"ポンプを使用した工事","台数"]
[null,null,"配管材","排水・通気用再生硬質ポリ塩化ビニル管","ｍ",null,null,null,null,"",{"$f":"IF(ISERROR(ROUND(G67/F67*100,1)),\"\",ROUND(G67/F67*100,1))","v":""},"排水・通気用再生硬質ポリ塩化ビニル管を使用した工事","施工延長"]
[null,null,"衛生器具","自動水栓","工事数",null,null,null,null,"",null,"自動水栓を使用した工事","工事数"]
[null,null,null,"自動洗浄装置およびその組み込み小便器","工事数",null,null,null,null,"",null,"自動洗浄装置およびその組み込み小便器を使用した工事","工事数"]
[null,null,null,"大便器","工事数",null,null,null,null,"",null,"大便器を使用した工事","工事数"]
[null,null,"コンクリート用型枠","再生材料を使用した型枠","m2",null,null,null,null,{"$f":"IF(ISERROR(ROUND(F71/SUM(F71,I71)*100,1)),\"\",ROUND(F71/SUM(F71,I71)*100,1))","v":""},null,"再生材料の型枠を使用した工事","使用面積"]
[null,null,null,"合板型枠","m2",null,null,null,null,{"$f":"IF(ISERROR(ROUND(F72/SUM(F72,I72)*100,1)),\"\",ROUND(F72/SUM(F72,I72)*100,1))","v":""},null,"合板型枠を使用した工事","使用面積"]
[null,"建設機械","－","排出ガス対策型建設機械","台",null,null,null,null,"",null,"排出ガス対策型建設機械を使用した工事","機械台数"]
[null,null,null,"低騒音型建設機械","台",null,null,null,null,"",null,"低騒音型建設機械を使用した工事","機械台数"]
[null,"工法","建設発生土有効利用工法","低品質土有効利用工法","工事数",null,null,null,null,"",null,"低品質土有効利用工法を適用した工事","工事数"]
[null,null,"建設汚泥再生処理工法","建設汚泥再生処理工法","工事数",null,null,null,null,"",null,"建設汚泥再生処理工法を適用した工事","工事数"]
[null,null,"コンクリート塊再生処理工法","コンクリート塊再生処理工法","工事数",null,null,null,null,"",null,"コンクリート塊再生処理工法を適用した工事","工事数"]
[null,null,"舗装（表層）","路上表層再生工法","m2",null,null,null,null,"",null,"路上表層再生工法を適用した工事","施工面積"]
[null,null,"舗装（路盤）","路上再生路盤工法","m2",null,null,null,null,"",null,"路上再生路盤工法を適用した工事","施工面積"]
[null,null,"法面緑化工法","建設発生木材（伐根材、伐採材、枝葉等または建設発生土を活用した法面緑化工法等（現場内利用工事）","m2",null,null,null,null,{"$f":"IF(ISERROR(ROUND(F80/SUM(F80,I80)*100,1)),\"\",ROUND(F80/SUM(F80,I80)*100,1))","v":""},null,"建設発生木材（伐根材、伐採材、枝葉等）または建設発生土を活用した法面緑化工法等を適用した工事","施工面積"]
[null,null,null,"木材チップを活用した植生基材吹付工法等（工事間流用・購入工事）","m2",null,null,"41,57,70-1,70-2,71",null,{"$f":"IF(ISERROR(ROUND(F81/SUM(F81,I81)*100,1)),\"\",ROUND(F81/SUM(F81,I81)*100,1))","v":""},null,"木材チップを活用した植生基材吹付工等を適用した工事","施工面積"]
[null,null,"山留め工法","泥土低減型ソイルセメント柱列壁工法","工事数",null,null,null,null,"",null,"泥土低減型ソイルセメント柱列壁工法を適用した工事","工事数"]
[null,"目的物","舗装","排水性舗装","m2",null,null,null,null,"",null,"排水性舗装を行った工事","施工面積"]
[null,null,"舗装","透水性舗装","m2",null,null,null,null,"",null,"透水性舗装を行った工事","施工面積"]
[null,null,"屋上緑化","屋上緑化","m2",null,null,null,null,"",null,"屋上緑化を行った工事","施工面積"]
["【留意事項】"]
["※別添「公共工事に係るグリーン購入調達記録表記載方法」に基づき、作成してください。"]
["1　適用品欄には、「福井県庁グリーン購入推進方針」の判断基準を満たした資材等の使用量等を記載してください。"]
["２　類似品欄には、適用品以外を使用した資材等の使用量を記載してください。（別添「類似品（適用品外）の考え方」を参照）"]
["３　この報告書は、工事完成届と同時に監督職員に提出してください。"]
["４　福井県庁グリーン購入推進方針ﾎｰﾑﾍﾟｰｼﾞｱﾄﾞﾚｽ　　http://www.pref.fukui.lg.jp/doc/kankyou/greenjissekiichirann.html"]

{"sheet":"公共工事に係るグリーン購入調達記録表記載方法","index":1,"n_rows":34,"n_cols":1,"rows_kept":34,"cut":false,"hidden":false,"merged":[]}
["「公共工事に係るグリーン購入調達記録表記載方法」（令和８年度版）"]
[]
["１「適用品(A)」欄"]
["　・「福井県庁グリーン購入推進方針」の重点品目の判断基準を満たした資機材等の"]
["　　使用量等を記入してください。"]
[]
["２「福井県認定リサイクル製品（B)」欄"]
["　・認定番号ではなく、調達数量を記入してください。"]
["　・「適用品（A)」以下の数量となっているか確認してください。"]
[]
["３「類似品（適用品外）(C)」欄"]
["　・重点品目のうち判断の基準を満足しない資機材、および使用目的において当該重点"]
["　　品目の代替品となり得る資機材の使用量を記入してください。"]
["　　　（別紙「類似品（適用品外）の考え方」を参照）"]
["　・類似品の調達がない場合は、「０」を記入してください。（適用品の調達があり、"]
["　　類似品が０の場合は、当該適用品数量割合（当該品目のグリーン購入率）は100％"]
["　　となる。）"]
[]
["４「適用品数量割合」、「県認定リサイクル製品数量割合」"]
["　・「適用品」、「福井県認定リサイクル製品」、「類似品」欄への数値入力により、"]
["　　自動計算されますので、入力する必要はありません。"]
["　"]
["５「建設機械」"]
["　・工事で使用した判断基準を満たす機械台数を記入すること。"]
["　　（例：１工事で判断基準を満たすバックホウを２台使用した場合、台数は２）"]
["　・使用した機種名を記入しないこと。"]
[]
["６　その他"]
["　・入力漏れがないかどうかを確認するため、「調達数量」欄は、調達がなくても空欄"]
["　　にせず、「０」を記入すること。"]
["　・品目毎に、記載方法欄により当該工事の総使用量を記入してください。"]
["　・この報告書は、工事完成届と同時に監督職員に提出してください。"]
["　・福井県庁グリーン購入推進方針ホームページアドレス"]
["　　　 http://www.pref.fukui.lg.jp/doc/kankyou/greenjissekiichirann.html"]

{"sheet":"類似品（適用品外）の考え方","index":2,"n_rows":74,"n_cols":7,"rows_kept":74,"cut":false,"hidden":false,"merged":[[8,1,9,1],[63,6,65,6],[71,4,73,4],[56,6,58,6],[12,1,13,1],[19,1,20,1],[19,4,20,4],[19,5,20,5],[32,4,34,4],[49,6,54,6]]}
["【類似品（適用品外）の考え方】"]
["分類","品目名\n（品目分類）","品目\n番号","品目名（品目名）","類似品等","単位","備考"]
["資材","盛土材等","21-1","建設汚泥から再生した処理土",null,"m3","建設発生土またはその改良土が代替品となることから、建設汚泥から再生した処理土の使用量のみ集計する。（代替品については集計しない。）"]
[null,null,"21-2","建設発生土またはその改良土","購入土","m3","ストックヤード利用土は当該重点品目として集計する"]
[null,null,"21-3","土工用水砕スラグ","購入土","m3"]
[null,null,"21-4","銅スラグを用いたケーソン中詰め材","購入土","m3"]
[null,null,"21-5","フェロニッケルスラグを用いたケーソン中詰め材","購入土","m3"]
[null,"地盤改良材","21-6","地盤改良用製鋼スラグ","購入土","m3"]
[null,"コンクリート用スラグ骨材","21-7","高炉スラグ骨材","骨材等（新材）","m3"]
[null,null,"21-8","フェロニッケルスラグ骨材","骨材等（新材）","m3"]
[null,null,"21-9","銅スラグ骨材","骨材等（新材）","m3"]
[null,null,"21-10","電気炉酸化スラグ骨材","骨材等（新材）","m3"]
[null,"アスファルト混合物","21-11","再生加熱アスファルト混合物","加熱アスファルト混合物（新材）","t"]
[null,null,"21-12","ワックス添加アスファルト混合物","当該重点品目のうち判断基準を満足しない資材、および耐流動密粒度アスファルト混合物改質Ⅱ型","m2"]
[null,null,"21-13","鉄鋼スラグ混入アスファルト混合物","加熱アスファルト混合物（新材）","t"]
[null,null,"21-14","中温化アスファルト混合物","加熱アスファルト混合物（新材）","t"]
[null,"路盤材","21-15","鉄鋼スラグ混入路盤材","骨材等（新材）","m3"]
[null,null,"21-16","再生骨材等","骨材等（新材）","m3"]
[null,"小径丸太材","21-17","間伐材","類似品等の特定は困難","m3","小径丸太材は、代替品の考え方が困難であることから、小径丸太材の使用量のみを集計する。（代替品については集計しない。）"]
[null,"混合セメントおよびコンクリート","21-18","高炉セメント（生コンクリートおよび吹付けコンクリートを含む。）","当該重点品目のうち判断基準を満足しない資材、および普通ポルトランドセメントセメント、生コンクリート（吹付けコンクリート含む）","t"]
[null,null,"21-19","フライアッシュセメント（生コンクリートおよび吹付けコンクリートを含む。）"]
[null,"セメント","21-20","エコセメント","類似品等の特定は困難","個","・現時点では、主にコンクリート製品への使用を想定しているため、集計は、コンクリート製品のみ行うこととする。"]
[null,"コンクリートおよびコンクリート製品","21-21","透水性コンクリート","ある条件下で必要とされる場合に調達するものであり、類似品等の設定は困難","m3\n個"]
[null,"コンクリート製品","21-22","再生材料を用いたコンクリート２次製品（インターロッキングブロックを含む。）","当該重点品目のうち判断基準を満足しない資材、および使用目的において当該重点品目の代替品となり得るコンクリート二次製品","t"]
[null,"鉄鋼スラグ水和固化体","21-23","鉄鋼スラグブロック","使用目的において当該特定調達品目が代替品となり得るコンクリートブロック、コンクリート二次製品、コンクリート舗装、その他コンクリート構造物、および捨石等の石材","kg"]
[null,"塗料","21-24","下塗用塗料\n（重防食）","判断の基準を満たさない下塗用塗料（重防食）","kg"]
[null,null,"21-25","低揮発性有機溶剤型の路面標示用水性塗料","判断の基準を満たさない路面標示用塗料","m2"]
[null,null,"21-26","高日射反射率塗料","対象箇所となる建物の屋上・屋根等において使用される際に判断の基準を満たさない塗料","m2"]
[null,"防水","21-27","高日射反射率防水","対象箇所となる建物の屋上・屋根等において使用される際に判断の基準を満たさない防水","m2"]
[null,"舗装材","21-28","再生材料を用いた舗装用ブロック（焼成）","当該重点品目のうち判断基準を満足しない資材、および使用目的において当該重点品目の代替品となり得る舗装用ブロック","m2"]
[null,null,"21-29","再生材料を用いた舗装用ブロック類（プレキャスト無筋コンクリート製品）",null,"m2"]
[null,"土木用シート","21-30","再生材料を用いた土木用シート（吸出防止材、植生・防草シート）","判断基準を満たさない土木用シート（吸出防止材、植生・防草シート）","m2"]
[null,"園芸資材","21-31","剪定枝葉たい肥","判断基準を満たさない肥料（土壌改良資材も含む）","kg"]
[null,null,"21-32","バークたい肥",null,"kg"]
[null,null,"21-33","下水汚泥を使用した汚泥発酵肥料（下水汚泥コンポスト）",null,"kg"]
[null,"道路照明","21-34","LED道路照明","判断基準を満たさないLED道路照明","個"]
[null,"中央分離帯ブロック","21-35","再生プラスチック製中央分離帯ブロック","使用目的において当該特定調達品目が代替品となり得るバージン樹脂製中央分離帯ブロック","m2"]
[null,"タイル","21-36","陶磁器質タイル","判断基準を満たさない陶磁器質タイル（特別注文品を除く）","m2"]
[null,"建具","21-37","断熱サッシ・ドア","判断基準を満たさない断熱サッシ・ドア","工事数"]
[null,"製材等","21-38","製材","判断基準を満たさない製材","m2"]
[null,null,"21-39","集成材、合板、単板積層材","判断基準を満たさない集合材、合板、単板積層材","m3"]
[null,"フローリング","21-40","フローリング","判断基準を満たさないフローリング","m2"]
[null,"再生木質ボード","21-41","パーティクルボード","判断基準を満たさないパーティクルボード","m2"]
[null,null,"21-42","繊維板","判断基準を満たさない繊維板","m2"]
[null,null,"21-43","木質系セメント板","判断基準を満たさない木質系セメント板","m2"]
[null,"木材・プラスチック再生複合材製品","21-44","木材・プラスチック再生複合材製品","判断基準を満たさない木材・プラスチック再生複合材製品","m2"]
[null,"ビニル系床材","21-45","ビニル系床材","判断基準を満たさないビニル系床材","m2","JISA5705（ビニル系床材）に規定されるビニル系床材の種類で記号PFに該当するものについては、本項の判断の基準の対象とする｢ビニル系床材｣に含まれないものとする。"]
[null,"断熱材","21-46","断熱材","判断基準を満たす断熱材を使用していない工事","工事数","判断基準を満足する断熱材を使用した場合には「適用品」欄に「１」を、判断基準を満足しない断熱材を採用した場合には「類似品」欄に「１」を記載する。（いずれも使用していない場合は、両方に「０」を記載する。）"]
[null,"照明機器","21-47","照明制御システム","事務室など通常使用される部屋で判断基準を満たす照明システムを採用していない工事","工事数","判断基準を満足するシステムを採用した場合には「適用品」欄に「１」を、判断基準を満足しない重点品目の代替のシステムのみを採用した場合には「類似品等」に「１」を記載する。（いずれも使用していない場合は、両方に「０」を記載する。）"]
[null,"変圧器","21-48","変圧器","判断基準を満たさない変圧器（備考に掲げる除外品を除く）","台","判断基準を満足する設備を使用した場合には「適用品」欄に「１」を、判断基準を満足しない設備を採用した場合には「類似品」欄に「１」を記載する。（いずれも使用していない場合は、両方に「０」を記載する。）"]
[null,"空調用機器","21-49","吸収冷温水機","判断基準を満たさない吸収冷温水機（備考に掲げる除外品を除く）","台"]
[null,null,"21-50","氷蓄熱式空調機器","判断基準を満たさない氷蓄熱式空調機器（備考に掲げる除外品を除く）","台"]
[null,null,"21-51","ガスエンジンヒートポンプ式空気調和機","判断基準を満たさないガスエンジンヒートポンプ式空気調和機（備考に掲げる除外品を除く）","台"]
[null,null,"21-52","送風機","判断基準を満たさない送風機（備考に掲げる除外品を除く）","台"]
[null,null,"21-53","ポンプ","判断基準を満たさないポンプ（備考に掲げる除外品を除く）","台"]
[null,"配管材","21-54","排水・通気用再生硬質ポリ塩化ビニル管","判断基準を満たさない排水・通気用ポリ硬質塩化ビニル管","ｍ"]
[null,"衛生器具","21-55","自動水栓","便所洗面に判断基準を満たす水栓を採用していない工事","工事数","判断基準を満足する資材を使用した場合には「適用品」欄に「１」を、判断基準を満足しない資材のみを使用した場合には「類似品」欄に「１」を記載する。（いずれも使用していない場合は、両方に「０」を記載する。）"]
[null,null,"21-56","自動洗浄装置およびその組み込み小便器","小便器を資材として使用する工事のうち、判断基準を満たす小便器を採用していない工事","工事数"]
[null,null,"21-57","大便器","大便器を資材として使用する工事のうち、判断基準を満たす洋風便器を採用していない工事","工事数"]
[null,"コンクリート用型枠","21-58","再生材料を使用した型枠","ある条件下で必要とされる場合に調達するものであり、類似品等の設定は困難","m2"]
[null,null,"21-59","合板型枠","合板型枠を資材として使用する工事のうち、判断基準を満たす合板型枠を採用していない工事","m2"]
["建設\n機械","－","21-60","排出ガス対策型建設機械",null,"台","工事により使用する建設機械台数が多くなり、類似品の特定が困難"]
[null,null,"21-61","低騒音型建設機械",null,"台","工事により使用する建設機械台数が多くなり、類似品の特定が困難"]
["工法","建設発生土有効利用工法","21-62","低品質土有効利用工法","粘性土等の低品質土が発生する現場において再利用できる工種等がある工事において新材を購入する工事","工事数","・判断の基準を満足する工法を使用した場合には「特定調達物品等」に「１」を、判断の基準を満足しない特定調達品目の代替の工法のみを使用した場合には「類似品等」に「１」を記載する。（いずれも使用していない場合は、両方に「０」を記載する。）"]
[null,"建設汚泥再生処理工法","21-63","建設汚泥再生処理工法","当該現場において発生した建設汚泥の産業廃棄物処理を行い、購入土又は発生土を用いた工法","工事数"]
[null,"コンクリート塊再生処理工法","21-64","コンクリート塊再生処理工法","当該現場において発生したコンクリート塊の産業廃棄物処理を行い、購入コンクリート又は他工事において発生・再生処理した再生骨材等を用いた工法","工事数"]
[null,"舗装（表層）","21-65","路上表層再生工法","ある条件下で必要とされる場合に調達するものであり、類似品等の設定は困難","m2"]
[null,"舗装（路盤）","21-66","路上再生路盤工法","ある条件下で必要とされる場合に調達するものであり、類似品等の設定は困難","m2"]
[null,"法面緑化工法","21-67","建設発生木材（伐根材、伐採材、枝葉等）または建設発生土を活用した法面緑化工法等（現場内利用工事）","判断基準を満たさない法面緑化工法等","m2"]
[null,null,"21-68","木材チップを活用した植生基材吹付工法等（工事間流用・購入工事）","判断基準を満たさない植生基材吹付工法等","m2"]
[null,"山留め工法","21-69","泥土低減型ソイルセメント柱列壁工法","判断の基準を満たさないソイルセメント柱列壁工法","工事数","・判断の基準を満足する工法を使用した場合には「特定調達物品等」に「１」を、判断の基準を満足しない特定調達品目の代替の工法のみを使用した場合には「類似品等」に「１」を記載する。（いずれも使用していない場合は、両方に「０」を記載する。）"]
["目的物","舗装","21-70","排水性舗装","ある条件下で必要とされる場合に調達するものであり、類似品等の設定は困難","m2"]
[null,"舗装","21-71","透水性舗装",null,"m2"]
[null,"屋上緑化","21-72","屋上緑化",null,"m2"]